Cogmind - Beta 13 @@@ ROGUE MODE // 2024.05.30 @ 10:31:18 Player: Minty Result: Destroyed by S-43 Plague with Heavy Machine Gun Performance ------------- Evolutions (7) 3500 Regions Visited (15) 3000 Robots Destroyed (60) 300 Value Destroyed (3219) 3219 Prototype IDs (26) 520 Alien Tech Used (0) 0 Bonus (1196) 1196 TOTAL SCORE: 11735 Bonus ------- High Alert Combat Kills 142 Follower Combat Kills 154 Entered Garrisons 400 Used RIF Installer 500 Cogmind --------- Core Integrity 0/1300 Matter 280/300 Energy 84/100 System Corruption 7% Temperature Cool (0) Movement Treading (145) Location -3/Research Parts ------- > --- POWER (2) -------- (None) > --- PROPULSION (4) --- Advanced Medium Treads > --- UTILITY (12) ----- Advanced Salvage Targeting Computer Advanced Salvage Targeting Computer Advanced Salvage Targeting Computer Advanced Salvage Targeting Computer Advanced Targeting Computer Improved System Shield Relay Coupler [NC] (25) Relay Coupler [Grunt] (25) > --- WEAPON (3) ------- (None) > --- INVENTORY (5) ---- Micro Antimatter Reactor Improved Hacking Suite Improved System Shield Advanced Drone Bay (2/2) Peak State ------------ > --- POWER ------------ Micro Antimatter Reactor > --- PROPULSION ------- Armored Medium Treads > --- UTILITY ---------- Advanced Heat Sink Advanced Heat Sink Compact Matter Pod Advanced Salvage Targeting Computer Advanced Salvage Targeting Computer Advanced Salvage Targeting Computer Advanced Salvage Targeting Computer Advanced Targeting Computer Improved System Shield Relay Coupler [NC] Relay Coupler [NC] Relay Coupler [Grunt] > --- WEAPON ----------- Field Laser Heavy Laser Phase Gun > --- INVENTORY -------- Advanced Drone Bay [Rating: 79] Favorites ----------- Power Ion Engine Engine Ion Engine Power Core Nuclear Core Reactor Light Antimatter Reactor Propulsion Flight Unit Treads Light Treads Leg Myomer Leg Wheel Compact Wheel Hover Unit Gravmag Array Flight Unit Flight Unit Utility Relay Coupler [NC] Device Advanced Heat Sink Storage Small Storage Unit Processor Advanced Targeting Computer Hackware Relay Coupler [NC] Protection Propulsion Shielding Weapon Small Laser Energy Gun Small Laser Ballistic Gun Assault Rifle Ballistic Cannon Hypervelocity Mass Driver Launcher Heavy Missile Launcher Special Weapon Improved Remote Datajack Impact Weapon Heavy Flail Special Melee Weapon Improved Datajack Build | -11 -10 -10 -10 -9 -8 -7 -7 -7 -6 -6 -6 -5 -5 -4 -3 ------- Run | Yrd Mat Min Exi Min Mat Fac Gar Fac Fac Low Low Fac Gar Fac Res Slots Evolved 14 | . . . . . 4 2 . . 2 . . 2 . 2 2 Power 1 | . . . . . . . . . . . . . . . 1 Propulsion 2 | . . . . . 2 . . . . . . . . . . Utility 10 | . . . . . 2 2 . . 2 . . 2 . 1 1 Weapon 1 | . . . . . . . . . . . . . . 1 . Parts Attached 128 | . 6 3 2 . 23 2 10 9 14 . . 6 9 16 28 Power 11 | . . 1 . . 1 . 3 . . . . . . 1 5 Engine 1 | . . 1 . . . . . . . . . . . . . Core 4 | . . . . . 1 . 3 . . . . . . . . Reactor 6 | . . . . . . . . . . . . . . 1 5 Propulsion 36 | . 5 2 . . 6 . . 3 6 . . . 1 6 7 Treads 8 | . 2 . . . . . . . 3 . . . . . 3 Leg 1 | . . . . . . . . . . . . . . 1 . Wheel 3 | . 1 . . . . . . . . . . . . 1 1 Hover 6 | . 2 . . . . . . . 2 . . . 1 . 1 Flight 18 | . . 2 . . 6 . . 3 1 . . . . 4 2 Utility 46 | . . . 2 . 9 2 3 1 3 . . 5 5 5 11 Device 13 | . . . . . 2 . . . 1 . . 1 . 3 6 Storage 3 | . . . . . 1 . 1 . . . . . . . 1 Processor 12 | . . . 2 . 5 . . 1 . . . . . . 4 Hackware 15 | . . . . . . 1 2 . 1 . . 4 5 2 . Protection 3 | . . . . . 1 1 . . 1 . . . . . . Artifact . | . . . . . . . . . . . . . . . . Weapon 35 | . 1 . . . 7 . 4 5 5 . . 1 3 4 5 Energy Gun 15 | . 1 . . . 2 . . 4 1 . . . . 3 4 Energy Cannon . | . . . . . . . . . . . . . . . . Ballistic Gun 8 | . . . . . 4 . 3 . 1 . . . . . . Ballistic Cannon 2 | . . . . . . . . . . . . . . 1 1 Launcher 5 | . . . . . 1 . 1 1 2 . . . . . . Special Weapon 3 | . . . . . . . . . . . . . 3 . . Impact Weapon 1 | . . . . . . . . . 1 . . . . . . Slashing Weapon . | . . . . . . . . . . . . . . . . Piercing Weapon . | . . . . . . . . . . . . . . . . Special Melee Weapon 1 | . . . . . . . . . . . . 1 . . . Unidentified Prototypes 3 | . . . . . 1 . . 1 1 . . . . . . Corrupted Parts 3 | . . . . . . . . . 2 . . . 1 . . System Corruption 19 | . . . . . . . . . 18 . . . 1 . . Parts Lost 67 | . 2 . . 1 3 . 2 3 17 . . . 8 12 19 Power 4 | . . . . . . . . . 1 . . . . 1 2 Propulsion 25 | . 1 . . . 1 . . 3 6 . . . 2 5 7 Utility 23 | . . . . . 2 . 2 . 6 . . . 3 4 6 Weapon 15 | . 1 . . 1 . . . . 4 . . . 3 2 4 Highest Loss Streak 14 | . 1 . . 1 2 . 2 3 14 . . . 4 7 8 To Critical Strikes . | . . . . . . . . . . . . . . . . Average Slot Usage (%) 63 | . 71 70 89 100 92 85 83 97 55 33 33 44 51 45 55 Engine 3 | . 14 14 14 14 . . . . . . . . . . . Core 1 | . . . . . 8 7 5 7 . . . . . . . Treads 2 | . 11 9 . . . . . . 2 . . . . . 3 Wheel 1 | . 5 9 . . . . . . . . . . . 1 . Hover 1 | . 8 . . . . . . . 3 6 6 5 3 . . Flight 10 | . . 7 28 28 34 30 30 29 12 . . . . 3 2 Device 2 | . . . . . 2 . . . . . . 4 . 4 6 Storage 1 | . 1 . . . 1 . 6 7 2 . . . . . 2 Processor 7 | . . . 18 28 21 23 11 6 6 6 6 5 5 5 9 Hackware 12 | . . . . . . 5 9 23 12 6 6 15 34 19 18 Protection 1 | . . . . . 7 2 7 7 4 . . . . . . Energy Gun 7 | . 13 14 14 14 6 . . 12 5 6 6 2 . 4 5 Ballistic Gun 4 | . 14 14 14 14 10 15 10 1 . . . . . . . Impact Weapon 1 | . . . . . . . . . 2 6 6 5 3 . . Naked Turns . | . . . . . . . . . . . . . . . . Heaviest Build 49 | 14 14 8 6 6 16 16 21 19 19 8 8 18 14 49 43 Greatest Support 62 | 20 40 16 8 8 19 19 19 19 60 20 20 20 20 25 62 Greatest Overweight (x) 3 | . 2 1 . . . . 1 1 . . . . 1 3 2 Average Overweight (x) . | . . . . . . . . . . . . . . . . Largest Inventory Capacity 8 | . 8 5 5 5 8 5 8 8 8 5 5 5 5 5 5 Average Capacity 5 | . 5 5 5 5 5 5 7 8 6 5 5 5 5 5 5 Most Carried 8 | . 8 5 5 5 5 5 8 8 8 5 5 5 5 5 5 Average Carried 4 | . 4 4 4 5 4 5 7 7 5 5 5 4 4 4 3 Final Capacity 8 | 8 5 5 5 5 5 5 8 8 5 5 5 5 5 5 5 Final Carried 8 | 6 5 5 5 5 5 5 8 6 5 5 5 2 4 5 5 Class Distribution -------------------- 58% | Mutant 13% | Sprinter 10% | Scavenger-Gunner 8% | Bothacker-Mutant 4% | Hacker-Sprinter 3% | Scavenger-Sprinter Dominant Class ---------------- Mutant | -10/Materials Mutant | -10/Mines Mutant | -10/Exiles Mutant | -9/Mines Scavenger-Sprinter | -8/Materials Sprinter | -7/Factory Sprinter | -7/Garrison Sprinter | -7/Factory Mutant | -6/Factory Mutant | -6/Lower Caves Mutant | -6/Lower Caves Mutant | -5/Factory Bothacker-Mutant | -5/Garrison Mutant | -4/Factory Mutant | -3/Research Resources | -11 -10 -10 -10 -9 -8 -7 -7 -7 -6 -6 -6 -5 -5 -4 -3 ----------- Run | Yrd Mat Min Exi Min Mat Fac Gar Fac Fac Low Low Fac Gar Fac Res Matter Collected 2157 | 190 132 57 . . 199 . 30 139 297 7 . 195 74 333 504 Remotely . | . . . . . . . . . . . . . . . . Salvage Created 2704 | . 273 14 . . 312 . 30 139 214 . . 138 122 322 1140 Parts 98 | . 11 2 . . 18 . 2 5 7 . . 1 2 17 33 Haulers Intercepted 2 | . . . . . 2 . . . . . . . . . . Recyclers Shooed 2 | . . . . . . . . . . . . 1 . . 1 Parts Field Recycled . | . . . . . . . . . . . . . . . . Retrieved Matter . | . . . . . . . . . . . . . . . . Parts Self-Destructed . | . . . . . . . . . . . . . . . . Prevented . | . . . . . . . . . . . . . . . . Kills | -11 -10 -10 -10 -9 -8 -7 -7 -7 -6 -6 -6 -5 -5 -4 -3 ------- Run | Yrd Mat Min Exi Min Mat Fac Gar Fac Fac Low Low Fac Gar Fac Res Combat Hostiles Destroyed 51 | . 7 . . . 7 . 1 5 7 . . 2 2 5 15 Melee 4 | . . . . . . . . . 2 . . 1 1 . . Guns 24 | . 6 . . . 7 . 1 3 1 . . . . . 6 Cannons 9 | . . . . . . . . . . . . . . 5 4 AOE 6 | . 1 . . . . . . 2 3 . . . . . . Classes Destroyed 12 | . 1 1 . . 4 . 1 1 2 . . . . . 2 Worker 2 | . . 1 . . . . . . . . . 1 . . . Builder 2 | . . . . . . . . . 1 . . . . . 1 Hauler 2 | . . . . . 2 . . . . . . . . . . Operator 2 | . . . . . . . . 1 . . . . . . 1 Watcher 1 | . . . . . 1 . . . . . . . . . . Swarmer 9 | . . . . . 4 . . 3 1 . . . . . 1 Grunt 28 | . 7 . . . 2 . . 2 2 . . 2 . 2 11 Brawler 1 | . . . . . . . . . . . . . . . 1 Duelist 1 | . . . . . . . . . . . . . . . 1 Sentry 4 | . . . . . 1 . . . . . . . 1 1 1 Hunter 1 | . . . . . . . . . 1 . . . . . . Programmer 7 | . . . . . . . 1 . 3 . . . 1 2 . Best Kill Streak 8 | . 5 1 . . 8 . 1 3 4 . . 2 1 3 5 Combat Bots Only 6 | . 5 . . . 6 . 1 3 4 . . 2 1 3 4 Max Kills in Single Turn 2 | . 1 1 . . 1 . 1 2 2 . . 1 1 1 1 Gunslinging . | . . . . . . . . . . . . . . . . Exploded 2 | . 1 . . . . . . 2 2 . . . . . . Melee 1 | . . . . . . . . . 1 . . 1 1 . . Uniques/NPCs Destroyed . | . . . . . . . . . . . . . . . . Combat | -11 -10 -10 -10 -9 -8 -7 -7 -7 -6 -6 -6 -5 -5 -4 -3 -------- Run | Yrd Mat Min Exi Min Mat Fac Gar Fac Fac Low Low Fac Gar Fac Res Hostile Shots Fired 932 | . 44 . . 4 34 . 12 19 276 . 45 37 79 152 230 Missed 392 | . 11 . . . 15 . 6 8 136 . 19 16 33 57 91 Damage Taken 10024 | . 359 . . 138 215 . 229 285 2183 . 199 349 974 1789 3304 Core 3923 | . 96 . . 39 41 . 99 56 714 . 95 53 646 767 1317 Absorbed by Shields 6 | . . . . . . . . . . . . . 6 . . Redirected to Shielding 179 | . . . . . 17 . . 39 123 . . . . . . Regen/Repaired (Parts) 454 | . . . . . 17 17 . . . . . . . . 420 Core Remaining (%) 54 | 100 . . . 46 92 . . 77 . . 4 . 30 33 . Volleys Fired 210 | . 27 6 . . 22 . 7 21 17 . 3 . 8 23 76 Largest 3 | . 2 2 . . 2 . 2 2 2 . 1 . 1 3 3 Hottest 232 | . 60 60 . . 90 . 56 126 126 . 65 . 7 232 220 Shots Fired 369 | . 51 12 . . 43 . 12 38 21 . 3 . 8 29 152 Gun 312 | . 51 12 . . 42 . 11 36 18 . 3 . . 7 132 Cannon 42 | . . . . . . . . . . . . . . 22 20 Launcher 7 | . . . . . 1 . 1 2 3 . . . . . . Special 8 | . . . . . . . . . . . . . 8 . . Kinetic 113 | . 27 6 . . 23 . 11 . 4 . . . . 22 20 Thermal 215 | . 3 6 . . 19 . . 36 12 . . . . 7 132 Explosive 7 | . . . . . 1 . 1 2 3 . . . . . . Electromagnetic 26 | . 21 . . . . . . . 2 . 3 . . . . Robot Hit Streak 19 | . 10 3 . . 7 . 4 11 6 . 2 . 10 15 19 Robot Miss Streak 7 | . 4 2 . . 7 . 4 2 2 . 1 . . 2 3 Penetration Max 1 | . . . . . . . . . . . . . . . 1 Secondary Targets 2 | . 1 . . . . . . . . . . . . . 1 Max Gunslinging Chain 1 | . 1 . . . . . . . . . . . . . 1 Shots Hit Robots 321 | . 31 7 . . 29 . 8 27 34 . 2 17 23 24 119 Core Hits 133 | . 11 2 . . 20 . 6 11 22 . 1 1 1 10 48 Critical Kills 9 | . 1 . . . . . . . . . . . . 4 4 Critical Parts Destroyed 20 | . . . . . . . . . 2 . . 2 2 6 8 Critical Strikes 40 | . 1 . . . . . . 2 2 . . 2 3 11 19 Burn 9 | . . . . . . . . 2 . . . . . . 7 Destroy 24 | . 1 . . . . . . . . . . . . 11 12 Smash 7 | . . . . . . . . . 2 . . 2 3 . . Melee Attacks 74 | . . . . . . . . . 28 . . 25 21 . . Impact 54 | . . . . . . . . . 28 . . 7 19 . . Slashing . | . . . . . . . . . . . . . . . . Piercing . | . . . . . . . . . . . . . . . . Sneak Attacks 7 | . . . . . . . . . 2 . . 4 1 . . Combat Hostiles 1 | . . . . . . . . . . . . . 1 . . Follow-up Attacks . | . . . . . . . . . . . . . . . . Damage Inflicted 8040 | . 484 77 . . 523 . 229 754 1960 . 43 330 560 500 2580 Guns 4285 | . 429 77 . . 523 . 144 424 254 . 43 . . 146 2245 Cannons 662 | . . . . . . . . . . . . . . 344 318 Explosions 1130 | . 55 . . . . . . 271 804 . . . . . . Melee 1786 | . . . . . . . . . 896 . . 330 560 . . Ramming 177 | . . . . . . . 85 59 6 . . . . 10 17 Kinetic 1543 | . 218 45 . . 409 . 144 . 65 . . . . 344 318 Thermal 3165 | . 66 32 . . 114 . . 424 138 . . . . 146 2245 Explosive 1075 | . . . . . . . . 271 804 . . . . . . Electromagnetic 294 | . 200 . . . . . . . 51 . 43 . . . . Impact 1786 | . . . . . . . . . 896 . . 330 560 . . Slashing . | . . . . . . . . . . . . . . . . Piercing . | . . . . . . . . . . . . . . . . Highest Corruption 30 | . . . . . . . 7 7 30 30 30 . 2 2 7 Average Corruption 7 | . . . . . . . 6 7 14 30 30 . 1 1 1 Corruption Purged 3 | . . . . . . . . . . . . . . . 3 Corruption Blocked . | . . . . . . . . . . . . . . . . Effects 55 | . . . . . . . 3 12 13 8 2 . 3 1 13 Message Errors 10 | . . . . . . . . 3 2 1 . . 1 1 2 Matter Fused 18 | . . . . . . . 1 5 6 4 . . 1 . 1 Heat Flow Errors 4 | . . . . . . . . 2 . 1 . . . . 1 Energy Discharges 6 | . . . . . . . 1 . 1 2 . . . . 2 Parts Rejected 3 | . . . . . . . . . 2 . . . . . 1 Parts Fused 1 | . . . . . . . 1 . . . . . . . . Data Loss (minor) 6 | . . . . . . . . 1 1 . 1 . 1 . 2 Misfires 2 | . . . . . . . . 1 . . . . . . 1 Misdirections 1 | . . . . . . . . . . . 1 . . . . Weapon Failures 4 | . . . . . . . . . 1 . . . . . 3 Overload Shots . | . . . . . . . . . . . . . . . . Overflow Damage 664 | . . . . . . . . 40 325 . . 210 89 . . Projectiles 20 | . . . . . . . . . . . . 20 . . . Explosions 37 | . . . . . . . . 21 16 . . . . . . Melee 607 | . . . . . . . . 19 309 . . 190 89 . . Knockbacks 11 | . . . . . . . . . 6 . . 3 1 . 1 Impact 8 | . . . . . . . . . 5 . . 2 1 . . Kinetic 1 | . . . . . . . . . . . . . . . 1 Secondary 2 | . . . . . . . . . 1 . . 1 . . . Self-Inflicted Damage 389 | . . . . . . . 89 119 175 . . . . 3 3 Shots 6 | . . . . . . . 1 2 3 . . . . . . Rammed 11 | . . . . . . . . 2 2 . . . . 3 4 Targets Rammed 12 | . . . . . . . . 2 2 . . . . 4 4 Kicked 1 | . . . . . . . . . . . . . . 1 . Crushed . | . . . . . . . . . . . . . . . . Highest Temperature 333 | . 120 . . 21 130 . 7 333 116 188 12 . . 151 127 Average Temperature 66 | . 46 . . 15 34 . 4 113 55 104 7 . . 42 44 Received Heat Transfer 1946 | . 198 . . 33 63 . . 18 309 . 66 36 252 337 634 Effects 2 | . . . . . . . . 2 . . . . . . . Energy Bleed 1 | . . . . . . . . 1 . . . . . . . Interference 1 | . . . . . . . . 1 . . . . . . . Siege Activations . | . . . . . . . . . . . . . . . . Robots Corrupted . | . . . . . . . . . . . . . . . . Combat Hostiles . | . . . . . . . . . . . . . . . . Parts Fried 5 | . . . . . . . . . 4 . . 1 . . . Impact Corruptions 23 | . . . . . . . . 2 12 . . 5 4 . . Robots Melted 5 | . . . . . . . . . . . . . . . 5 Combat Hostiles 5 | . . . . . . . . . . . . . . . 5 Parts Melted 22 | . . . . . . . . 1 1 . . . . . 20 Heat Transferred 6693 | . 175 75 . . 262 . . 1073 296 . . . . 261 4551 Parts Sabotaged . | . . . . . . . . . . . . . . . . Parts Stolen . | . . . . . . . . . . . . . . . . Parts Stripped . | . . . . . . . . . . . . . . . . Power Chain Reactions 2 | . 1 . . . . . . . 1 . . . . . . Alert | -11 -10 -10 -10 -9 -8 -7 -7 -7 -6 -6 -6 -5 -5 -4 -3 ------- Run | Yrd Mat Min Exi Min Mat Fac Gar Fac Fac Low Low Fac Gar Fac Res Peak Influence 757 | . 230 94 . . 341 154 235 483 757 . . 471 345 363 323 Initial 236 | . . 89 . . . 154 124 123 236 . . 179 221 126 69 Average 238 | . 149 75 . . 151 154 184 248 520 . . 266 282 228 197 Maximum Alert Level 3 | . 1 . . . 1 . 1 2 3 . . 2 1 1 1 Low Security (%) 45 | . 56 100 . 100 57 100 76 37 . . . 53 1 39 46 Level 1 40 | . 43 . . . 42 . 23 50 15 . . 22 98 60 53 Level 2 13 | . . . . . . . . 11 79 . . 23 . . . Level 3 . | . . . . . . . . . 4 . . . . . . Level 4 . | . . . . . . . . . . . . . . . . Level 5 . | . . . . . . . . . . . . . . . . High Security . | . . . . . . . . . . . . . . . . Max Security . | . . . . . . . . . . . . . . . . Squads Dispatched 24 | . 3 . . . 3 . . 1 4 . . 4 . 2 7 Investigation 6 | . 2 . . . 1 . . . 2 . . . . . 1 Extermination 4 | . . . . . . . . . 1 . . 1 . 1 1 Reinforcement 10 | . 1 . . . 1 . . 1 1 . . 3 . 1 2 Assault . | . . . . . . . . . . . . . . . . Garrison 4 | . . . . . 1 . . . . . . . . . 3 Intercept . | . . . . . . . . . . . . . . . . Searches Triggered 1 | . . . . . . . . . 1 . . . . . . Construction Impeded 1 | . . . . . . . . . . . . 1 . . . Haulers Reinforced . | . . . . . . . . . . . . . . . . Active Scanning Responses . | . . . . . . . . . . . . . . . . Cargo Convoy Interrupts . | . . . . . . . . . . . . . . . . Stealth | -11 -10 -10 -10 -9 -8 -7 -7 -7 -6 -6 -6 -5 -5 -4 -3 --------- Run | Yrd Mat Min Exi Min Mat Fac Gar Fac Fac Low Low Fac Gar Fac Res Distress Signals 10 | . 1 . . . . . . . 1 . . 2 . 3 3 Communications Jammed . | . . . . . . . . . . . . . . . . Distress Signals . | . . . . . . . . . . . . . . . . Times Spotted 206 | . 13 . . 4 17 . 3 16 31 2 1 29 22 28 40 Peak Tracking Total 16 | . 4 . . 4 6 . 3 7 13 3 1 9 16 7 14 Tactical Retreats 34 | . . . . . 2 . 1 5 9 1 . 3 1 5 7 Traps | -11 -10 -10 -10 -9 -8 -7 -7 -7 -6 -6 -6 -5 -5 -4 -3 ------- Run | Yrd Mat Min Exi Min Mat Fac Gar Fac Fac Low Low Fac Gar Fac Res Traps Triggered 9 | . 1 . . . . . . . . . . . 4 1 3 Indirectly . | . . . . . . . . . . . . . . . . Trap Hack Attempts 29 | . . . . . . . . . . . . . 29 . . Triggered . | . . . . . . . . . . . . . . . . Disarmed 1 | . . . . . . . . . . . . . 1 . . Reprogrammed 2 | . . . . . . . . . . . . . 2 . . Reused . | . . . . . . . . . . . . . . . . Traps Extracted . | . . . . . . . . . . . . . . . . Installed . | . . . . . . . . . . . . . . . . Triggered . | . . . . . . . . . . . . . . . . Objects Rigged 2 | . . . . . 2 . . . . . . . . . . Machines | -11 -10 -10 -10 -9 -8 -7 -7 -7 -6 -6 -6 -5 -5 -4 -3 ---------- Run | Yrd Mat Min Exi Min Mat Fac Gar Fac Fac Low Low Fac Gar Fac Res Machines Disabled 10 | . 3 . . . . . 1 2 1 . . 1 1 1 . Max in Single Turn 2 | . 2 . . . . . 1 2 1 . . . 1 1 . Garrison Access 1 | . . . . . . . . . . . . . . . 1 Garrison Relay 2 | . . . . . . . 1 . . . . . 1 . . Machines Repaired . | . . . . . . . . . . . . . . . . Machines Dismantled . | . . . . . . . . . . . . . . . . Machines Sabotaged . | . . . . . . . . . . . . . . . . Overloaded Fab Kills 7 | . . . . . . . . . 7 . . . . . . Hacking | -11 -10 -10 -10 -9 -8 -7 -7 -7 -6 -6 -6 -5 -5 -4 -3 --------- Run | Yrd Mat Min Exi Min Mat Fac Gar Fac Fac Low Low Fac Gar Fac Res Machines Accessed 32 | . 2 . 2 . 7 2 1 3 5 . . 2 . 3 5 Terminals 15 | . 2 . . . 5 . 1 3 1 . . 1 . 2 . Fabricators 4 | . . . . . . . . . 3 . . . . 1 . Repair Stations 3 | . . . . . 1 1 . . . . . . . . 1 Recycling Units 3 | . . . . . 1 . . . . . . . . . 2 Scanalyzers 1 | . . . . . . . . . . . . . . . 1 Garrison Access 4 | . . . . . . 1 . . 1 . . 1 . . 1 Total Hacks 85 | . 5 . 2 . 20 3 1 15 13 . . 5 . 11 10 Successful 39 | . 1 . 2 . 9 3 1 5 5 . . 2 . 3 8 Failed 46 | . 4 . . . 11 . . 10 8 . . 3 . 8 2 Catastrophic 17 | . 2 . . . 3 . . 4 2 . . . . 4 2 Database Lockouts . | . . . . . . . . . . . . . . . . Manual 40 | . 4 . 1 . 11 . . 9 10 . . 1 . 4 . Terminals 48 | . 5 . . . 16 . 1 15 2 . . 4 . 5 . Fabricators 12 | . . . . . . . . . 6 . . . . 6 . Repair Stations 8 | . . . . . 2 2 . . . . . . . . 4 Recycling Units 5 | . . . . . 2 . . . . . . . . . 3 Scanalyzers 2 | . . . . . . . . . . . . . . . 2 Garrison Access 8 | . . . . . . 1 . . 5 . . 1 . . 1 Terminal Hacks 10 | . 1 . 2 . 3 . 1 2 . . . . . 1 . Record 1 | . . . 1 . . . . . . . . . . . . Branch Access Points 1 | . . . . . 1 . . . . . . . . . . Terminal Index 1 | . . . . . . . . 1 . . . . . . . Alert Level 3 | . 1 . . . 1 . . 1 . . . . . . . Locate Traps 1 | . . . . . . . . . . . . . . 1 . Recall Reinforcements 1 | . . . . . 1 . . . . . . . . . . Garrison Registry 1 | . . . . . . . 1 . . . . . . . . Derelict Proto ID Bank 1 | . . . 1 . . . . . . . . . . . . Fabricator Hacks 2 | . . . . . . . . . 1 . . . . 1 . Network Status 1 | . . . . . . . . . . . . . . 1 . Build 1 | . . . . . . . . . 1 . . . . . . Repair Station Hacks 8 | . . . . . 2 2 . . . . . . . . 4 Scan Component 4 | . . . . . 1 1 . . . . . . . . 2 Repair 4 | . . . . . 1 1 . . . . . . . . 2 Recycling Unit Hacks 4 | . . . . . 1 . . . . . . . . . 3 Report Inventory 2 | . . . . . . . . . . . . . . . 2 Retrieve Components 2 | . . . . . 1 . . . . . . . . . 1 Scanalyzer . | . . . . . . . . . . . . . . . . Garrison Access Hacks 3 | . . . . . . 1 . . . . . 1 . . 1 Unlock Access 2 | . . . . . . 1 . . . . . 1 . . . Seal Access 1 | . . . . . . . . . . . . . . . 1 Unauthorized Hacks 12 | . . . . . 3 . . 3 4 . . 1 . 1 . Terminals 8 | . . . . . 3 . . 3 1 . . 1 . . . Assimilate 1 | . . . . . . . . 1 . . . . . . . Botnet 5 | . . . . . 2 . . 1 1 . . 1 . . . Detonate 1 | . . . . . 1 . . . . . . . . . . Operators 1 | . . . . . . . . 1 . . . . . . . Fabricators 2 | . . . . . . . . . 1 . . . . 1 . Liberate 1 | . . . . . . . . . . . . . . 1 . Overload 1 | . . . . . . . . . 1 . . . . . . Repair Stations . | . . . . . . . . . . . . . . . . Recycling Units . | . . . . . . . . . . . . . . . . Scanalyzers . | . . . . . . . . . . . . . . . . Garrison Access 2 | . . . . . . . . . 2 . . . . . . Restock 1 | . . . . . . . . . 1 . . . . . . Reprogram 1 | . . . . . . . . . 1 . . . . . . Data Cores Recovered . | . . . . . . . . . . . . . . . . Used . | . . . . . . . . . . . . . . . . Hacking Detections 24 | . 2 . . . 7 1 1 2 4 . . 2 . 3 2 Full Trace Events 6 | . 2 . . . 2 . . . 1 . . . . . 1 Feedback Events 1 | . . . . . . . . . . . . . . . 1 Corruption 1 | . . . . . . . . . . . . . . . 1 Feedback Blocked . | . . . . . . . . . . . . . . . . Robot Schematics Acquired . | . . . . . . . . . . . . . . . . Robots Built . | . . . . . . . . . . . . . . . . Authchips . | . . . . . . . . . . . . . . . . Time . | . . . . . . . . . . . . . . . . Total Robot Build Rating . | . . . . . . . . . . . . . . . . Part Schematics Acquired . | . . . . . . . . . . . . . . . . Parts Built 1 | . . . . . . . . . 1 . . . . . . Authchips . | . . . . . . . . . . . . . . . . Time 64 | . . . . . . . . . 64 . . . . . . Total Part Build Rating 8 | . . . . . . . . . 8 . . . . . . Parts Repaired 4 | . . . . . 1 1 . . . . . . . . 2 Time 170 | . . . . . 26 26 . . . . . . . . 118 Parts Recycled . | . . . . . . . . . . . . . . . . Recycled Matter . | . . . . . . . . . . . . . . . . Retrieved Matter . | . . . . . . . . . . . . . . . . Retrieved Components 5 | . . . . . 3 . . . . . . . . . 2 Parts Scanalyzed . | . . . . . . . . . . . . . . . . Part Schematics Acquired . | . . . . . . . . . . . . . . . . Parts Damaged . | . . . . . . . . . . . . . . . . Bothacking | -11 -10 -10 -10 -9 -8 -7 -7 -7 -6 -6 -6 -5 -5 -4 -3 ------------ Run | Yrd Mat Min Exi Min Mat Fac Gar Fac Fac Low Low Fac Gar Fac Res Used RIF Installer 1 | . . . . . . . 1 . . . . . . . . Robots Hacked 17 | . . . . . . . . . . . . 9 8 . . Non-combat 3 | . . . . . . . . . . . . 3 . . . Combat 14 | . . . . . . . . . . . . 6 8 . . Robot Hacks Applied 20 | . . . . . . . . . . . . 11 9 . . parse_system 1 | . . . . . . . . . . . . 1 . . . generate_echo 1 | . . . . . . . . . . . . 1 . . . map_walls 1 | . . . . . . . . . . . . 1 . . . purge_threat 1 | . . . . . . . . . . . . 1 . . . locate_traps 1 | . . . . . . . . . . . . 1 . . . spike_heat 1 | . . . . . . . . . . . . . 1 . . overload_power 1 | . . . . . . . . . . . . 1 . . . amplify_resonance 1 | . . . . . . . . . . . . . 1 . . wipe_record 1 | . . . . . . . . . . . . 1 . . . disable_weapons 1 | . . . . . . . . . . . . 1 . . . overwrite_iff 7 | . . . . . . . . . . . . 2 5 . . formatsys_high 3 | . . . . . . . . . . . . 1 2 . . Relay Couplers Released 15 | . . . . . . . 7 . 3 . . . 5 . . Machine Destruction 9 | . . . . . . . 4 . . . . . 5 . . Programmers 6 | . . . . . . . 3 . 3 . . . . . . Attached 12 | . . . . . . . 2 . . . . 3 5 2 . Fabnet Peak Effective % . | . . . . . . . . . . . . . . . . Robots Rewired 2 | . . . 2 . . . . . . . . . . . . Allies Hacked . | . . . . . . . . . . . . . . . . Hacks Repelled . | . . . . . . . . . . . . . . . . Allies | -11 -10 -10 -10 -9 -8 -7 -7 -7 -6 -6 -6 -5 -5 -4 -3 -------- Run | Yrd Mat Min Exi Min Mat Fac Gar Fac Fac Low Low Fac Gar Fac Res Total Allies 14 | . . 2 2 . . . . . . . . 3 7 . . Largest Group 2 | . . 2 2 2 . . . . . . . 2 2 . . Highest-Rated Group 78 | . . 42 42 29 . . . . . . . 78 58 . . Highest-Rated Ally 49 | . . 31 31 21 . . . . . . . 49 41 . . Total Orders 3 | . . . . . . . . . . . . 2 1 . . EXPLORE 3 | . . . . . . . . . . . . 2 1 . . Ally Attacks 37 | . . . . . . . . . . . . 14 23 . . Total Damage 816 | . . . . . . . . . . . . 369 447 . . Kills 6 | . . . . . . . . . . . . 5 1 . . Allies Corrupted 1 | . . . . . . . . . . . . 1 . . . Allies Melted . | . . . . . . . . . . . . . . . . Intel | -11 -10 -10 -10 -9 -8 -7 -7 -7 -6 -6 -6 -5 -5 -4 -3 ------- Run | Yrd Mat Min Exi Min Mat Fac Gar Fac Fac Low Low Fac Gar Fac Res Robot Analysis Total . | . . . . . . . . . . . . . . . . Derelict Logs Recovered 2 | . . 1 . . . . . . . . 1 . . . . Drone Launches 8 | . . . . . . . . . . . . 8 . . . Drone Recoveries 2 | . . . . . . . . . . . . 2 . . . Exploration | -11 -10 -10 -10 -9 -8 -7 -7 -7 -6 -6 -6 -5 -5 -4 -3 ------------- Run | Yrd Mat Min Exi Min Mat Fac Gar Fac Fac Low Low Fac Gar Fac Res Turns Passed 4179 | . 239 485 222 20 271 43 113 295 525 151 16 282 314 453 750 Spaces Moved 4992 | 1 159 537 340 53 430 47 217 564 737 246 16 384 278 463 520 Core 355 | . . . . . . . . . 23 . . . 122 105 105 Treads 125 | . 7 . . . . . . . 14 . . . . . 104 Legs 45 | 1 10 . . . . . . . . . . . . 34 . Wheels 517 | . 82 328 . . . . . . . . . . . 90 17 Hover 938 | . 60 . . . . . . . 76 246 16 384 156 . . Flight 3012 | . . 209 340 53 430 47 217 564 624 . . . . 234 294 Fastest Speed 28 | 120 56 37 37 37 28 28 28 28 28 60 60 60 50 30 34 Average Speed 51 | 120 90 75 37 37 30 28 33 28 39 60 60 60 55 70 67 Slowest Speed 200 | 120 180 120 37 37 37 28 105 112 160 60 60 60 100 200 170 Overloaded Moves . | . . . . . . . . . . . . . . . . Propulsion Burnouts . | . . . . . . . . . . . . . . . . Robots Hopped 27 | . . . 2 . 3 1 . 1 8 . . . . 11 1 Cave-ins Triggered . | . . . . . . . . . . . . . . . . Exploration Rate (%) 31 | 1 35 88 86 23 48 2 34 13 23 51 4 23 36 15 16 Regions Visited 15 Branch Regions 5 Pre-discovered Areas 1 | . . . 1 . . . . . . . . . . . . Known Exits Taken 3 | . . . . . 1 1 . . . . . 1 . . . Unknown Exits Taken 10 | 1 1 1 1 1 . . . 1 1 1 1 . . 1 . Scrap Searched 3 | . . 3 . . . . . . . . . . . . . Spaces Dug 33 | . . . . . 21 . 11 . . . . 1 . . . Terrain Destroyed 71 | . 5 . . . 21 . 11 17 16 . . 1 . . . Melee 1 | . . . . . . . . . . . . 1 . . . Projectile . | . . . . . . . . . . . . . . . . AOE 70 | . 5 . . . 21 . 11 17 16 . . . . . . Terrain Rammed 2 | . . . . . . . 2 . . . . . . . . Walls Destroyed 2 | . . . . . . . 2 . . . . . . . . Machines Disabled . | . . . . . . . . . . . . . . . . Actions | -11 -10 -10 -10 -9 -8 -7 -7 -7 -6 -6 -6 -5 -5 -4 -3 --------- Run | Yrd Mat Min Exi Min Mat Fac Gar Fac Fac Low Low Fac Gar Fac Res Total 6109 | . 204 603 433 52 522 74 246 659 892 248 18 424 403 545 786 Wait 540 | . 5 52 60 . 32 26 . 60 93 3 . 4 29 32 144 Move 4925 | . 158 536 335 52 423 45 215 561 720 245 15 384 276 442 518 Hop 25 | . . . 2 . 3 1 . 1 8 . . . . 9 1 Pick Up 31 | . 1 2 1 . 6 . 4 1 5 . . . 1 3 7 Fast Attach 79 | . 3 2 2 . 10 2 3 4 10 . . 3 6 13 21 Attach 34 | . 1 . . . 4 . 7 3 4 . . 3 3 2 7 Detach 23 | . 3 . . . 4 . 7 2 . . . . 3 . 4 Swap 15 | . 2 1 . . 9 . . 2 . . . . . 1 . Drop 32 | . 4 4 1 . 9 . 1 2 5 . . 1 . 1 4 Fire 210 | . 27 6 . . 22 . 7 21 17 . 3 . 8 23 76 Melee 74 | . . . . . . . . . 28 . . 25 21 . . Ram 11 | . . . . . . . 2 2 2 . . . . 3 2 Kick 1 | . . . . . . . . . . . . . . 1 . Crush 2 | . . . . . . . . . . . . . . . 2 Escape Stasis 41 | . . . . . . . . . . . . . 26 15 . Rewire 34 | . . . 32 . . . . . . . . 1 1 . . Trap 29 | . . . . . . . . . . . . . 29 . . Miscellaneous 3 | . . . . . . . . . . . . 3 . . . Route ------- -11/Scrapyard -10/Materials (discovered 2 exits: [*Mat] / [*Min]) -10/Mines (discovered 3 exits: [*Mat x2] / *Exi) -10/Exiles -9/Mines -8/Materials -7/Factory -7/Garrison (discovered 4 exits: *Fac x4) -7/Factory -6/Factory -6/Lower Caves -6/Lower Caves -5/Factory (discovered 3 exits: Fac x2 / Gar) -5/Garrison -4/Factory -3/Research History --------- Turn | Location | Event 1 | -11/Scrapyard | Discovered new exit (range 0) 1 | -11/Scrapyard | Entered Materials 154 | -10/Materials | Discovered new exit (range 13) 189 | -10/Materials | Discovered new exit (range 16) 240 | -10/Materials | Entered Mines 262 | -10/Mines | Met a Derelict bent on vengeance 300 | -10/Mines | Discovered new exit (range 9) 302 | -10/Mines | Build established: Mutant 456 | -10/Mines | Learned 2 Materials zone layouts 640 | -10/Mines | Discovered new exit (range 10) 673 | -10/Mines | Deemed a non-threat by the Exiles lab entrance 673 | -10/Mines | Discovered new exit (range 5) 725 | -10/Mines | Entered Exiles 725 | -10/Exiles | Found Exiles lab destroyed 725 | -10/Exiles | Accompanied by 2 allies 755 | -10/Exiles | Led the pair of lost Derelicts to a safe place 762 | -10/Exiles | Opened EX-Vault 765 | -10/Exiles | Found Modified TNC 872 | -10/Exiles | Learned location of Zion (-7) 883 | -10/Exiles | Discovered new exit (range 14) 947 | -10/Exiles | Entered Mines 947 | -9/Mines | Accompanied by 2 allies 954 | -9/Mines | Assembled infested the area 965 | -9/Mines | Discovered new exit (range 9) 966 | -9/Mines | Core integrity fell below 50% 967 | -9/Mines | Entered Materials 967 | -8/Materials | Evolved 4 slots: Propulsion x2, Utility x2 1151 | -8/Materials | Repaired Flight Unit 1189 | -8/Materials | Garrison activated, responded to threat 1195 | -8/Materials | Discovered new exit (range 16) 1238 | -8/Materials | Identified exit to Factory 1238 | -8/Materials | Entered Factory 1238 | -7/Factory | Evolved 2 slots: Utility x2 1272 | -7/Factory | Repaired Propulsion Shielding 1281 | -7/Factory | Identified exit to Garrison 1281 | -7/Factory | Entered Garrison 1294 | -7/Garrison | Discovered new exit (range 58) 1294 | -7/Garrison | Discovered new exit (range 55) 1294 | -7/Garrison | Discovered new exit (range 91) 1294 | -7/Garrison | Discovered new exit (range 74) 1325 | -7/Garrison | Triggered checkpoint 1352 | -7/Garrison | Installed Relay Interface Framework 1394 | -7/Garrison | Entered Factory 1450 | -7/Factory | Build established: Sprinter 1671 | -7/Factory | Discovered new exit (range 6) 1680 | -7/Factory | Lost 3 parts (3n) 1689 | -7/Factory | Entered another Factory area 1689 | -6/Factory | Evolved 2 slots: Utility x2 1893 | -6/Factory | System corruption reached 10% 1962 | -6/Factory | Lost 14 parts (5n5u4w) 1965 | -6/Factory | Core integrity fell below 50% 2039 | -6/Factory | Search patrols dispatched 2042 | -6/Factory | Fabricated Gamma Bomb Array? 2152 | -6/Factory | Core integrity fell below 20% 2159 | -6/Factory | System corruption reached 30% 2204 | -6/Factory | Discovered new exit (range 15) 2214 | -6/Factory | Build established: Mutant 2214 | -6/Factory | Entered Lower Caves 2360 | -6/Lower Caves | Discovered new exit (range 9) 2365 | -6/Lower Caves | Entered another Lower Caves area 2367 | -6/Lower Caves | Attracted the attention of an 0b10 checkpoint 2371 | -6/Lower Caves | Discovered new exit (range 15) 2376 | -6/Lower Caves | Learned 8 Factory zone layouts 2381 | -6/Lower Caves | Entered Factory 2381 | -5/Factory | Evolved 2 slots: Utility x2 2382 | -5/Factory | Identified exit to Factory 2662 | -5/Factory | Lost 3 allies 2663 | -5/Factory | Identified exit to Garrison 2663 | -5/Factory | Entered Garrison 2663 | -5/Garrison | Accompanied by 2 allies 2699 | -5/Garrison | Triggered checkpoint 2715 | -5/Garrison | Garrison Relay disabled 2895 | -5/Garrison | Core integrity fell below 50% 2909 | -5/Garrison | Lost 3 parts (1n1u1w) 2923 | -5/Garrison | Triggered checkpoint 2928 | -5/Garrison | Triggered checkpoint 2931 | -5/Garrison | Spotted B-75 Beast 2974 | -5/Garrison | Discovered exit to Factory (range 5) 2977 | -5/Garrison | Entered Factory 2977 | -4/Factory | Evolved 2 slots: Utility x1, Weapon x1 2980 | -4/Factory | Lost 4 parts (1n2u1w) 2982 | -4/Factory | Lost 5 allies 3154 | -4/Factory | Core integrity fell below 50% 3186 | -4/Factory | Lost 5 parts (3n2u) 3392 | -4/Factory | Spotted B-86 Titan 3406 | -4/Factory | Lost 7 parts (1p2n2u2w) 3427 | -4/Factory | Discovered new exit (range 7) 3430 | -4/Factory | Entered Research 3430 | -3/Research | Evolved 2 slots: Power x1, Utility x1 3508 | -3/Research | Repaired Hyp. Mass Driver 3567 | -3/Research | Repaired Adv. Drone Bay 3756 | -3/Research | Lost 4 parts (3n1w) 3901 | -3/Research | Garrison activated, responded to threat 3952 | -3/Research | Lost 4 parts (1p2n1u) 3984 | -3/Research | Core integrity fell below 50% 3987 | -3/Research | Build established: Scavenger-Gunner 4149 | -3/Research | Spotted B-86 Titan 4157 | -3/Research | Core integrity fell below 20% 4180 | -3/Research | Destroyed by S-43 Plague with Heavy Machine Gun Last Messages --------------- 04128_ Penetrated by Slug. 04128_ Acquired 7 matter. 04130_ Slug penetrates R-10 Processor. 04130_ R-10 Processor suffers critical hit (Destroy). 04130_ Slug penetrates U-05 Engineer. 04131_ Gravmag System destroyed. 04131_ Penetrated by Slug. 04151_ Imp. System Restoration Module purges 1% system corruption (5%). 04154_ Imp. System Restoration Module purges 1% system corruption (4%). 04156_ Penetrated by Slug. 04156_ Slug penetrates Wall. 04159_ Detecting nearby Garrison Access. 04159_ Com. Matter Pod destroyed. 04165_ Imp. System Restoration Module destroyed. 04167_ P-80 Master resets P-80 Master, system corruption cleaned. 04171_ O-24 Administrator: "IFF HANDSHAKE FAILED. SECURING TERMINAL." 04174_ ALERT: Hostiles spotted, dispatching reinforcements to Terminal R003. 04179_ System corrupted: Matter fused (-10). 04179_ Acquired Adv. Medium Treads. Map ----- +----------------------------------------------------+ | ?????????????????????????????????????????????????? | | ?????????????????????????????????????????????????? | | ?????????????????????????????????????????????????? | | ?????????????????????????????????????????????????? | | ?????????????????????????????????????????????????? | | ?????????????????????????????????????????????????? | | ?????????????????????????????????????????????????? | | ?????????????????????????????????????????????????? | | ?????????????????????????????????????????????????? | | ?????????????????????????????????????????????????? | | ?????????????????????????????????????????????????? | | ?????????????????????????????????????????????????? | | ?????????????????????????????????????????????????? | | ?????????????????????????????????????????????????? | | ?????????????????????????????????????????????????? | | ?????????????????????????????????????????????????? | | ?????????????????????????????????????????????????? | | ?????????????????###########+##??????????????????? | | ?????????????????# R#??????????????????? | | ?????????????????# #??????????????????? | | ?????????????????# = #??????????????????? | | ?????????????????# #+##+##########????? | | ?????????????????# # ???? | | ?????????????????# + ???? | | ?????????????????# == # ??? | | ?????????????????# @ s ???? | | ?????????????????# # ####??????????? | | ?????????????????# # #?????????????? | | ?????????????????# = # #?????????????? | | ?????????????????# # #?????????????? | | ?????????????????############## #?????????????? | | ??????????????????????????????# #?????????????? | | ?????????????????????########## #?????????????? | | ?????????????????????# # #?????????????? | | ?????????????????????# # #?????????????? | | ?????????????????????# "" ] # #?????????????? | | ?????????????????????# "" # #?????????????? | | ?????????????????????# "T # #?????????????? | | ??????????????? ???# "" # #?????????????? | | ??????????????!!! ??# "" + #?????????????? | | ??????????????!! ?# " #?????????????? | | ????????????? !! # # #?????????????? | | ??????????? #####+#### ######????????? | | ??????????? #?# ""????????? | | ??????????? ! #?# """ """ ??? | | ??????????? #?# ???? | | ???????????? ### ????? | | ???????????? # ????? | | ?????????????"""" #? """ """????? | | ???????????????"" ### ^ """ """ ? | +----------------------------------------------------+ Best States ------------- Heat Dissipation 103 Energy Generation 39 Energy Capacity 250 Matter Stores 450 Matter Capacity 450 Sight Range 20 Robot Scan Range 15 Terrain Scan Range 18 Terrain Scan Density 10 ECM Strength 1 Propulsion Shielding 33 Weapon Shielding 66 Phase Shifting 5 Evasion (%) 64 Targeting Accuracy 8 Recoil Reduction 2 Kinecelleration 30 Salvage Targeting 12 Offensive Hacking 10 Defensive Hacking 12 Relay Coupler Types 5 Relay Coupler Value 160 Item Schematics ----------------- None Robot Schematics ------------------ None Fabricated ------------ Gamma Bomb Array | x1 | -6/Factory | Preloaded Alien Tech Used ----------------- None Achievements -------------- None Challenges ------------ None Game ------ Seed ActiveProtonWeb Manual? 0 Play Time 00:47:55 Cumulative 745.0 hours Start 2024.05.29 @ 23:52:19 End 2024.05.30 @ 10:31:18 Sessions 3 Manual Loads 0 Difficulty Rogue Special Mode None Game No. 820 Rogue 545 Adventurer 123 Explorer 152 Win Type - Total 26 Types 20/0/4/1/0/0/0/1/0 Lore% 84 Gallery% 92 Achievement% 76 Wizard Run 0 Options --------- Layout 0 ASCII 0 Keyboard 1 Movement Numpad Keybinds 0 Fullscreen 2 Font 18/Terminus Map View 76x50 Zoom Use 0% Tactical HUD 1 Map Filters NONE Filters NONE Steam 1 RUN: 998441f5-435b-4336-b5cf-fa4475adb357